[Event "Titled Tuesday Blitz November 22 Early 2022"]
[White "Skliarov, Viktor"]
[Black "Timofeev, Artyom"]
[WhiteFideId "14106736"]
[BlackFideId "4140419"]
[WhiteElo "2284"]
[BlackElo "2586"]
[Result "1/2-1/2"]
[Round "02"]
[TimeControl "180+1"]
[Date "2022.11.23"]
[WhiteClock "0:00:14"]
[BlackClock "0:00:13"]

1. e4 {[%clk 0:03:00]}  c5 {[%clk 0:02:59]} 2. Nf3 {[%clk 0:03:00]}  Nc6 {[%clk 0:02:58]} 3. Bb5 {[%clk 0:03:00]}  d6 {[%clk 0:02:58]} 4. d4 {[%clk 0:02:59]}  cxd4 {[%clk 0:02:58]} 5. Qxd4 {[%clk 0:02:59]}  Nf6 {[%clk 0:02:56]} 6. Nc3 {[%clk 0:02:58]}  Bg4 {[%clk 0:02:42]} 7. e5 {[%clk 0:02:38]}  dxe5 {[%clk 0:02:35]} 8. Qxd8+ {[%clk 0:02:35]}  Rxd8 {[%clk 0:02:31]} 9. Nxe5 {[%clk 0:02:35]}  Bd7 {[%clk 0:02:29]} 10. Nxd7 {[%clk 0:02:33]}  Nxd7 {[%clk 0:02:27]} 11. Be3 {[%clk 0:02:24]}  a6 {[%clk 0:02:25]} 12. Be2 {[%clk 0:02:21]}  e6 {[%clk 0:02:23]} 13. O-O-O {[%clk 0:02:19]}  Bc5 {[%clk 0:02:21]} 14. Bxc5 {[%clk 0:01:58]}  Nxc5 {[%clk 0:02:21]} 15. Bf3 {[%clk 0:01:55]}  Rc8 {[%clk 0:02:15]} 16. Ne4 {[%clk 0:01:49]}  Nxe4 {[%clk 0:02:14]} 17. Bxe4 {[%clk 0:01:50]}  Ke7 {[%clk 0:02:14]} 18. Bxc6 {[%clk 0:01:39]}  Rxc6 {[%clk 0:02:13]} 19. Rd3 {[%clk 0:01:38]}  Rd8 {[%clk 0:02:08]} 20. Rxd8 {[%clk 0:01:36]}  Kxd8 {[%clk 0:02:08]} 21. Rd1+ {[%clk 0:01:36]}  Ke7 {[%clk 0:02:09]} 22. g3 {[%clk 0:01:37]}  e5 {[%clk 0:02:08]} 23. h4 {[%clk 0:01:36]}  Rf6 {[%clk 0:02:03]} 24. Rd2 {[%clk 0:01:32]}  h6 {[%clk 0:01:59]} 25. Kd1 {[%clk 0:01:31]}  g5 {[%clk 0:01:59]} 26. hxg5 {[%clk 0:01:31]}  hxg5 {[%clk 0:01:59]} 27. Ke2 {[%clk 0:01:32]}  Rc6 {[%clk 0:01:58]} 28. g4 {[%clk 0:01:26]}  Rc4 {[%clk 0:01:55]} 29. f3 {[%clk 0:01:26]}  e4 {[%clk 0:01:54]} 30. Ke3 {[%clk 0:01:21]}  exf3 {[%clk 0:01:54]} 31. Kxf3 {[%clk 0:01:21]}  Ke6 {[%clk 0:01:52]} 32. c3 {[%clk 0:01:18]}  b5 {[%clk 0:01:34]} 33. Re2+ {[%clk 0:01:11]}  Kd6 {[%clk 0:01:31]} 34. Re8 {[%clk 0:01:07]}  a5 {[%clk 0:01:15]} 35. Rb8 {[%clk 0:01:00]}  b4 {[%clk 0:01:13]} 36. cxb4 {[%clk 0:00:55]}  axb4 {[%clk 0:01:14]} 37. b3 {[%clk 0:00:54]}  Rf4+ {[%clk 0:01:11]} 38. Kg3 {[%clk 0:00:54]}  Rd4 {[%clk 0:01:11]} 39. Kf3 {[%clk 0:00:44]}  f6 {[%clk 0:00:59]} 40. Rd8+ {[%clk 0:00:42]}  Ke5 {[%clk 0:00:59]} 41. Re8+ {[%clk 0:00:42]}  Kd5 {[%clk 0:00:59]} 42. Rd8+ {[%clk 0:00:42]}  Kc5 {[%clk 0:00:59]} 43. Rc8+ {[%clk 0:00:41]}  Kb6 {[%clk 0:00:59]} 44. Rb8+ {[%clk 0:00:36]}  Kc7 {[%clk 0:00:58]} 45. Rb5 {[%clk 0:00:36]}  Rf4+ {[%clk 0:00:57]} 46. Kg3 {[%clk 0:00:36]}  Kc6 {[%clk 0:00:57]} 47. Rb8 {[%clk 0:00:29]}  Kd5 {[%clk 0:00:54]} 48. Rb5+ {[%clk 0:00:29]}  Ke6 {[%clk 0:00:53]} 49. Rb6+ {[%clk 0:00:29]}  Kf7 {[%clk 0:00:53]} 50. Rb7+ {[%clk 0:00:30]}  Kg6 {[%clk 0:00:54]} 51. Rb6 {[%clk 0:00:30]}  Rd4 {[%clk 0:00:53]} 52. Kf3 {[%clk 0:00:30]}  Rd3+ {[%clk 0:00:44]} 53. Ke2 {[%clk 0:00:30]}  Rd4 {[%clk 0:00:42]} 54. Kf3 {[%clk 0:00:30]}  Kf7 {[%clk 0:00:42]} 55. Rb7+ {[%clk 0:00:30]}  Ke6 {[%clk 0:00:42]} 56. Rb8 {[%clk 0:00:28]}  Rf4+ {[%clk 0:00:38]} 57. Kg3 {[%clk 0:00:28]}  Kd6 {[%clk 0:00:32]} 58. Rb5 {[%clk 0:00:27]}  Kc6 {[%clk 0:00:32]} 59. Rb8 {[%clk 0:00:27]}  Kd7 {[%clk 0:00:24]} 60. Rb5 {[%clk 0:00:25]}  Kc7 {[%clk 0:00:24]} 61. Rc5+ {[%clk 0:00:22]}  Kb6 {[%clk 0:00:22]} 62. Rc8 {[%clk 0:00:21]}  Rd4 {[%clk 0:00:21]} 63. Rb8+ {[%clk 0:00:20]}  Kc7 {[%clk 0:00:21]} 64. Rb5 {[%clk 0:00:20]}  Rd3+ {[%clk 0:00:20]} 65. Kf2 {[%clk 0:00:18]}  Rd2+ {[%clk 0:00:20]} 66. Kf3 {[%clk 0:00:18]}  Rd4 {[%clk 0:00:20]} 67. Rc5+ {[%clk 0:00:16]}  Kb6 {[%clk 0:00:19]} 68. Rf5 {[%clk 0:00:16]}  Kc6 {[%clk 0:00:18]} 69. Rxf6+ {[%clk 0:00:16]}  Kd7 {[%clk 0:00:17]} 70. Rf5 {[%clk 0:00:17]}  Rd3+ {[%clk 0:00:17]} 71. Ke4 {[%clk 0:00:17]}  Rd2 {[%clk 0:00:18]} 72. Rxg5 {[%clk 0:00:17]}  Rxa2 {[%clk 0:00:18]} 73. Rb5 {[%clk 0:00:17]}  Rg2 {[%clk 0:00:17]} 74. g5 {[%clk 0:00:18]}  Rg3 {[%clk 0:00:16]} 75. Kf5 {[%clk 0:00:12]}  Rf3+ {[%clk 0:00:14]} 76. Kg6 {[%clk 0:00:11]}  Rxb3 {[%clk 0:00:14]} 77. Kh6 {[%clk 0:00:12]}  Kc6 {[%clk 0:00:14]} 78. Rb8 {[%clk 0:00:11]}  Kc5 {[%clk 0:00:14]} 79. g6 {[%clk 0:00:11]}  Rh3+ {[%clk 0:00:14]} 80. Kg7 {[%clk 0:00:12]}  Rg3 {[%clk 0:00:13]} 81. Kf7 {[%clk 0:00:12]}  Kc4 {[%clk 0:00:13]} 82. g7 {[%clk 0:00:13]}  b3 {[%clk 0:00:13]} 83. g8=Q {[%clk 0:00:13]}  Rxg8 {[%clk 0:00:12]} 84. Kxg8 {[%clk 0:00:13]}  Kc3 {[%clk 0:00:13]} 85. Kf7 {[%clk 0:00:14]}  b2 {[%clk 0:00:13]} 86. Ke6 {[%clk 0:00:14]}  Kc2 {[%clk 0:00:13]} 87. Rxb2+ {[%clk 0:00:14]}  Kxb2 {[%clk 0:00:13]} 1/2-1/2


[Site "https://www.chess.com"]

[Event "Titled Tuesday Blitz November 22 Early 2022"]
[White "Stefanova, Antoaneta"]
[Black "Oparin, Grigoriy"]
[WhiteFideId "2902257"]
[BlackFideId "24125890"]
[WhiteElo "2426"]
[BlackElo "2639"]
[Result "0-1"]
[Round "02"]
[TimeControl "180+1"]
[Date "2022.11.22"]
[WhiteClock "0:00:03"]
[BlackClock "0:00:12"]

1. d4 {[%clk 0:03:00]}  Nf6 {[%clk 0:03:00]} 2. Bg5 {[%clk 0:03:00]}  d5 {[%clk 0:03:00]} 3. Bxf6 {[%clk 0:02:59]}  gxf6 {[%clk 0:03:01]} 4. e3 {[%clk 0:02:59]}  c5 {[%clk 0:03:01]} 5. Nf3 {[%clk 0:02:55]}  Nc6 {[%clk 0:02:59]} 6. dxc5 {[%clk 0:02:51]}  e6 {[%clk 0:02:58]} 7. c4 {[%clk 0:02:50]}  dxc4 {[%clk 0:02:57]} 8. Qxd8+ {[%clk 0:02:49]}  Nxd8 {[%clk 0:02:57]} 9. Bxc4 {[%clk 0:02:48]}  Bxc5 {[%clk 0:02:57]} 10. Ke2 {[%clk 0:02:46]}  a6 {[%clk 0:02:56]} 11. Rd1 {[%clk 0:02:42]}  Ke7 {[%clk 0:02:53]} 12. Nc3 {[%clk 0:02:40]}  f5 {[%clk 0:02:40]} 13. Rac1 {[%clk 0:02:38]}  Ba7 {[%clk 0:02:37]} 14. g3 {[%clk 0:02:33]}  Nc6 {[%clk 0:02:37]} 15. a3 {[%clk 0:02:24]}  Bd7 {[%clk 0:02:37]} 16. e4 {[%clk 0:02:18]}  fxe4 {[%clk 0:02:33]} 17. Nxe4 {[%clk 0:02:17]}  Rhd8 {[%clk 0:02:28]} 18. Nd6 {[%clk 0:01:53]}  Rab8 {[%clk 0:02:28]} 19. Kf1 {[%clk 0:01:44]}  h6 {[%clk 0:02:25]} 20. Be2 {[%clk 0:01:40]}  f5 {[%clk 0:02:14]} 21. Nc4 {[%clk 0:01:38]}  Kf6 {[%clk 0:02:13]} 22. Rd6 {[%clk 0:01:35]}  Be8 {[%clk 0:02:13]} 23. Rcd1 {[%clk 0:01:32]}  Rxd6 {[%clk 0:02:12]} 24. Nxd6 {[%clk 0:01:32]}  Bg6 {[%clk 0:01:51]} 25. Nh4 {[%clk 0:01:20]}  Bh7 {[%clk 0:01:46]} 26. Bf3 {[%clk 0:01:15]}  Nd4 {[%clk 0:01:36]} 27. Bg2 {[%clk 0:01:15]}  b5 {[%clk 0:01:30]} 28. Nf3 {[%clk 0:01:11]}  e5 {[%clk 0:01:30]} 29. Rc1 {[%clk 0:01:07]}  Nxf3 {[%clk 0:01:24]} 30. Bxf3 {[%clk 0:01:06]}  e4 {[%clk 0:01:24]} 31. Be2 {[%clk 0:01:05]}  Bd4 {[%clk 0:01:25]} 32. Rc6 {[%clk 0:01:02]}  Rb6 {[%clk 0:01:13]} 33. Nxe4+ {[%clk 0:01:01]}  Ke5 {[%clk 0:01:08]} 34. Rxb6 {[%clk 0:00:59]}  Bxb6 {[%clk 0:01:09]} 35. Nc3 {[%clk 0:00:57]}  f4 {[%clk 0:01:09]} 36. Ke1 {[%clk 0:00:55]}  Bd4 {[%clk 0:01:08]} 37. gxf4+ {[%clk 0:00:47]}  Kxf4 {[%clk 0:01:08]} 38. Nd5+ {[%clk 0:00:45]}  Ke5 {[%clk 0:01:04]} 39. Nb4 {[%clk 0:00:44]}  Bxb2 {[%clk 0:01:00]} 40. Nxa6 {[%clk 0:00:44]}  Bxa3 {[%clk 0:01:00]} 41. Bxb5 {[%clk 0:00:44]}  Bd6 {[%clk 0:01:01]} 42. Kd2 {[%clk 0:00:39]}  Kd4 {[%clk 0:01:00]} 43. h3 {[%clk 0:00:38]}  Bf5 {[%clk 0:00:58]} 44. Bf1 {[%clk 0:00:38]}  h5 {[%clk 0:00:56]} 45. h4 {[%clk 0:00:26]}  Bg4 {[%clk 0:00:56]} 46. Bg2 {[%clk 0:00:23]}  Be6 {[%clk 0:00:41]} 47. Bf3 {[%clk 0:00:22]}  Bf7 {[%clk 0:00:41]} 48. Ke1 {[%clk 0:00:18]}  Ke5 {[%clk 0:00:32]} 49. Kf1 {[%clk 0:00:18]}  Kf4 {[%clk 0:00:32]} 50. Kg2 {[%clk 0:00:17]}  Be8 {[%clk 0:00:30]} 51. Be2 {[%clk 0:00:13]}  Bc6+ {[%clk 0:00:30]} 52. Kh3 {[%clk 0:00:12]}  Bd7+ {[%clk 0:00:27]} 53. Kg2 {[%clk 0:00:13]}  Be8 {[%clk 0:00:24]} 54. Kh3 {[%clk 0:00:12]}  Ke4 {[%clk 0:00:20]} 55. Kg2 {[%clk 0:00:12]}  Kd4 {[%clk 0:00:20]} 56. Kh3 {[%clk 0:00:11]}  Kc3 {[%clk 0:00:21]} 57. Kg2 {[%clk 0:00:11]}  Kd2 {[%clk 0:00:21]} 58. Kf1 {[%clk 0:00:11]}  Bf7 {[%clk 0:00:21]} 59. Bb5 {[%clk 0:00:09]}  Be6 {[%clk 0:00:21]} 60. Kg2 {[%clk 0:00:09]}  Ke1 {[%clk 0:00:20]} 61. Be8 {[%clk 0:00:09]}  Bd5+ {[%clk 0:00:19]} 62. f3 {[%clk 0:00:09]}  Bc4 {[%clk 0:00:15]} 63. Bxh5 {[%clk 0:00:08]}  Bxa6 {[%clk 0:00:16]} 64. Bg4 {[%clk 0:00:08]}  Bf4 {[%clk 0:00:16]} 65. h5 {[%clk 0:00:08]}  Kd2 {[%clk 0:00:15]} 66. Kh3 {[%clk 0:00:07]}  Ke3 {[%clk 0:00:15]} 67. Kh4 {[%clk 0:00:07]}  Bh6 {[%clk 0:00:15]} 68. Kg3 {[%clk 0:00:07]}  Bc4 {[%clk 0:00:15]} 69. Kh4 {[%clk 0:00:06]}  Kf4 {[%clk 0:00:14]} 70. Kh3 {[%clk 0:00:06]}  Bf1+ {[%clk 0:00:15]} 71. Kh2 {[%clk 0:00:05]}  Bg5 {[%clk 0:00:14]} 72. Kg1 {[%clk 0:00:06]}  Bc4 {[%clk 0:00:14]} 73. Kf2 {[%clk 0:00:06]}  Bh4+ {[%clk 0:00:15]} 74. Kg2 {[%clk 0:00:05]}  Kg5 {[%clk 0:00:16]} 75. Kh3 {[%clk 0:00:05]}  Bf1+ {[%clk 0:00:16]} 76. Kh2 {[%clk 0:00:05]}  Bf2 {[%clk 0:00:16]} 77. Kh1 {[%clk 0:00:04]}  Kh4 {[%clk 0:00:12]} 78. Kh2 {[%clk 0:00:05]}  Be3 {[%clk 0:00:12]} 79. Kh1 {[%clk 0:00:04]}  Kg3 {[%clk 0:00:12]} 80. h6 {[%clk 0:00:03]}  Bg2# {[%clk 0:00:12]} 0-1


[Site "https://www.chess.com"]

[Event "Titled Tuesday Blitz November 22 Early 2022"]
[White "Storme, Isak"]
[Black "Unat, Can Haktan"]
[WhiteFideId "1728113"]
[BlackFideId "6398073"]
[WhiteElo "2324"]
[BlackElo "2146"]
[Result "0-1"]
[Round "02"]
[TimeControl "180+1"]
[Date "2022.11.23"]
[WhiteClock "0:01:17"]
[BlackClock "0:00:11"]

1. g4 {[%clk 0:02:56]}  h5 {[%clk 0:02:51]} 2. g5 {[%clk 0:02:55]}  e5 {[%clk 0:02:34]} 3. e4 {[%clk 0:02:51]}  Qxg5 {[%clk 0:02:33]} 4. d4 {[%clk 0:02:50]}  Qh4 {[%clk 0:02:34]} 5. Nf3 {[%clk 0:02:49]}  Qxe4+ {[%clk 0:02:31]} 6. Be2 {[%clk 0:02:49]}  d5 {[%clk 0:02:28]} 7. Nc3 {[%clk 0:02:49]}  Qg6 {[%clk 0:02:23]} 8. Nxd5 {[%clk 0:02:46]}  Bd6 {[%clk 0:02:01]} 9. dxe5 {[%clk 0:02:46]}  c6 {[%clk 0:02:01]} 10. exd6 {[%clk 0:02:43]}  cxd5 {[%clk 0:02:01]} 11. Qxd5 {[%clk 0:02:44]}  Nf6 {[%clk 0:02:00]} 12. Bb5+ {[%clk 0:02:42]}  Nbd7 {[%clk 0:01:59]} 13. Qe5+ {[%clk 0:02:40]}  Kf8 {[%clk 0:01:59]} 14. Qe7+ {[%clk 0:02:39]}  Kg8 {[%clk 0:01:59]} 15. Rg1 {[%clk 0:02:39]}  Qe4+ {[%clk 0:01:57]} 16. Qxe4 {[%clk 0:02:39]}  Nxe4 {[%clk 0:01:58]} 17. Bf4 {[%clk 0:02:36]}  Ndf6 {[%clk 0:01:49]} 18. O-O-O {[%clk 0:02:36]}  Bg4 {[%clk 0:01:47]} 19. Be2 {[%clk 0:02:24]}  Nxf2 {[%clk 0:01:45]} 20. Rd4 {[%clk 0:02:23]}  Nh3 {[%clk 0:01:40]} 21. Rgd1 {[%clk 0:02:23]}  Nxf4 {[%clk 0:01:34]} 22. Rxf4 {[%clk 0:02:24]}  Nd7 {[%clk 0:01:35]} 23. Re4 {[%clk 0:02:24]}  Rc8 {[%clk 0:01:32]} 24. Re7 {[%clk 0:02:24]}  Kf8 {[%clk 0:01:26]} 25. Rf1 {[%clk 0:02:21]}  Rh6 {[%clk 0:01:24]} 26. Nd4 {[%clk 0:02:18]}  Rf6 {[%clk 0:01:12]} 27. Rxf6 {[%clk 0:02:05]}  Nxf6 {[%clk 0:01:13]} 28. Bxg4 {[%clk 0:02:05]}  hxg4 {[%clk 0:01:14]} 29. Rxb7 {[%clk 0:02:05]}  Rd8 {[%clk 0:01:15]} 30. Nf5 {[%clk 0:01:58]}  g6 {[%clk 0:01:14]} 31. Nh6 {[%clk 0:01:59]}  Rxd6 {[%clk 0:01:11]} 32. Rxf7+ {[%clk 0:01:59]}  Ke8 {[%clk 0:01:12]} 33. Rxa7 {[%clk 0:01:58]}  Re6 {[%clk 0:01:11]} 34. Nf7 {[%clk 0:01:56]}  Re2 {[%clk 0:01:09]} 35. Nd6+ {[%clk 0:01:56]}  Kd8 {[%clk 0:01:09]} 36. c4 {[%clk 0:01:55]}  Nd7 {[%clk 0:01:01]} 37. b4 {[%clk 0:01:51]}  Rxh2 {[%clk 0:00:56]} 38. c5 {[%clk 0:01:51]}  Ne5 {[%clk 0:00:25]} 39. Ne4 {[%clk 0:01:25]}  Nd3+ {[%clk 0:00:22]} 40. Kd1 {[%clk 0:01:24]}  Nxb4 {[%clk 0:00:23]} 41. Rg7 {[%clk 0:01:23]}  Nxa2 {[%clk 0:00:16]} 42. Rxg6 {[%clk 0:01:23]}  Rh4 {[%clk 0:00:15]} 43. c6 {[%clk 0:01:22]}  Kc7 {[%clk 0:00:15]} 44. Nc5 {[%clk 0:01:22]}  Nc3+ {[%clk 0:00:11]} 45. Kc2 {[%clk 0:01:21]}  Nb5 {[%clk 0:00:12]} 46. Na6+ {[%clk 0:01:20]}  Kd8 {[%clk 0:00:07]} 47. Rg5 {[%clk 0:01:18]}  Nd6 {[%clk 0:00:03]} 48. c7+ {[%clk 0:01:16]}  Kd7 {[%clk 0:00:02]} 49. Rg7+ {[%clk 0:01:16]}  Ke6 {[%clk 0:00:02]} 50. Nc5+ {[%clk 0:01:15]}  Kd5 {[%clk 0:00:02]} 51. Nb7 {[%clk 0:01:13]}  Rh2+ {[%clk 0:00:03]} 52. Kc3 {[%clk 0:01:12]}  Rh8 {[%clk 0:00:03]} 53. Rd7 {[%clk 0:01:11]}  Kc6 {[%clk 0:00:03]} 54. Rxd6+ {[%clk 0:01:12]}  Kxb7 {[%clk 0:00:03]} 55. Rd8 {[%clk 0:01:12]}  Rh3+ {[%clk 0:00:04]} 56. Rd3 {[%clk 0:01:11]}  Kxc7 {[%clk 0:00:04]} 57. Kd4 {[%clk 0:01:11]}  Kd6 {[%clk 0:00:03]} 58. Rd1 {[%clk 0:01:11]}  Ke6 {[%clk 0:00:03]} 59. Ke4 {[%clk 0:01:11]}  Rf3 {[%clk 0:00:03]} 60. Rg1 {[%clk 0:01:11]}  Ra3 {[%clk 0:00:03]} 61. Rh1 {[%clk 0:01:12]}  Ra4+ {[%clk 0:00:04]} 62. Ke3 {[%clk 0:01:12]}  Kf5 {[%clk 0:00:05]} 63. Rh5+ {[%clk 0:01:12]}  Kg6 {[%clk 0:00:05]} 64. Rb5 {[%clk 0:01:13]}  Rc4 {[%clk 0:00:05]} 65. Rb6+ {[%clk 0:01:13]}  Kg5 {[%clk 0:00:05]} 66. Rb5+ {[%clk 0:01:14]}  Kh4 {[%clk 0:00:06]} 67. Rb8 {[%clk 0:01:15]}  Kg3 {[%clk 0:00:06]} 68. Rb3 {[%clk 0:01:15]}  Rc7 {[%clk 0:00:07]} 69. Ke2+ {[%clk 0:01:16]}  Kg2 {[%clk 0:00:07]} 70. Rb4 {[%clk 0:01:16]}  g3 {[%clk 0:00:08]} 71. Rh4 {[%clk 0:01:17]}  Re7+ {[%clk 0:00:09]} 72. Kd2 {[%clk 0:01:17]}  Kf2 {[%clk 0:00:09]} 73. Rf4+ {[%clk 0:01:17]}  Kg1 {[%clk 0:00:10]} 74. Rf8 {[%clk 0:01:18]}  g2 {[%clk 0:00:11]} 75. Rf4 {[%clk 0:01:18]}  Rh7 {[%clk 0:00:11]} 76. Ke2 {[%clk 0:01:18]}  Kh1 {[%clk 0:00:12]} 77. Rg4 {[%clk 0:01:17]}  g1=Q {[%clk 0:00:11]} 0-1


[Site "https://www.chess.com"]

[Event "Titled Tuesday Blitz November 22 Early 2022"]
[White "Szente Varga, Fruzsina"]
[Black "Lehtosaari, Mauri"]
[WhiteFideId "712264"]
[BlackFideId "501999"]
[WhiteElo "1994"]
[BlackElo "2503"]
[Result "0-1"]
[Round "02"]
[TimeControl "180+1"]
[Date "2022.11.23"]
[WhiteClock "0:00:14"]
[BlackClock "0:00:31"]

1. e4 {[%clk 0:03:00]}  d5 {[%clk 0:02:58]} 2. exd5 {[%clk 0:02:57]}  Qxd5 {[%clk 0:02:59]} 3. Nc3 {[%clk 0:02:57]}  Qe5+ {[%clk 0:02:59]} 4. Be2 {[%clk 0:02:55]}  c6 {[%clk 0:02:59]} 5. Nf3 {[%clk 0:02:56]}  Qc7 {[%clk 0:03:00]} 6. d4 {[%clk 0:02:56]}  Bf5 {[%clk 0:03:00]} 7. O-O {[%clk 0:02:52]}  e6 {[%clk 0:03:00]} 8. Be3 {[%clk 0:02:51]}  Nf6 {[%clk 0:02:59]} 9. Qd2 {[%clk 0:02:51]}  Nbd7 {[%clk 0:02:58]} 10. Bf4 {[%clk 0:02:48]}  Bd6 {[%clk 0:02:57]} 11. Bxd6 {[%clk 0:02:44]}  Qxd6 {[%clk 0:02:58]} 12. Bd3 {[%clk 0:02:34]}  Bg4 {[%clk 0:02:52]} 13. Be2 {[%clk 0:02:22]}  O-O {[%clk 0:02:50]} 14. h3 {[%clk 0:02:22]}  Bh5 {[%clk 0:02:50]} 15. Rad1 {[%clk 0:02:20]}  Rad8 {[%clk 0:02:49]} 16. Ng5 {[%clk 0:02:19]}  Bxe2 {[%clk 0:02:33]} 17. Qxe2 {[%clk 0:02:19]}  Qb4 {[%clk 0:02:30]} 18. Nce4 {[%clk 0:02:13]}  Qxb2 {[%clk 0:02:14]} 19. Nd6 {[%clk 0:01:59]}  h6 {[%clk 0:02:03]} 20. Ngxf7 {[%clk 0:01:26]}  Rxf7 {[%clk 0:01:49]} 21. Qxe6 {[%clk 0:01:26]}  Rf8 {[%clk 0:01:49]} 22. Rb1 {[%clk 0:01:17]}  Qxd4 {[%clk 0:01:44]} 23. Rxb7 {[%clk 0:01:17]}  Qd5 {[%clk 0:01:39]} 24. Qxd5 {[%clk 0:01:13]}  cxd5 {[%clk 0:01:25]} 25. Nxf7 {[%clk 0:01:12]}  Rxf7 {[%clk 0:01:26]} 26. Rxa7 {[%clk 0:01:12]}  Rf8 {[%clk 0:01:25]} 27. a4 {[%clk 0:01:02]}  Rc8 {[%clk 0:01:21]} 28. Rc1 {[%clk 0:00:56]}  Rc4 {[%clk 0:01:15]} 29. a5 {[%clk 0:00:55]}  Ra4 {[%clk 0:01:15]} 30. Rd1 {[%clk 0:00:46]}  Ra2 {[%clk 0:01:10]} 31. Rd2 {[%clk 0:00:43]}  Nc5 {[%clk 0:01:09]} 32. Re2 {[%clk 0:00:34]}  Nce4 {[%clk 0:00:57]} 33. f3 {[%clk 0:00:31]}  Ng3 {[%clk 0:00:52]} 34. Ree7 {[%clk 0:00:30]}  Ra1+ {[%clk 0:00:48]} 35. Kf2 {[%clk 0:00:24]}  Nfh5 {[%clk 0:00:46]} 36. Red7 {[%clk 0:00:17]}  Ra2 {[%clk 0:00:43]} 37. Rxd5 {[%clk 0:00:15]}  Rxc2+ {[%clk 0:00:43]} 38. Ke3 {[%clk 0:00:16]}  Rxg2 {[%clk 0:00:41]} 39. Rd8+ {[%clk 0:00:15]}  Kh7 {[%clk 0:00:41]} 40. a6 {[%clk 0:00:16]}  Ra2 {[%clk 0:00:41]} 41. Raa8 {[%clk 0:00:16]}  Nf5+ {[%clk 0:00:40]} 42. Ke4 {[%clk 0:00:16]}  Ne7 {[%clk 0:00:40]} 43. Rh8+ {[%clk 0:00:15]}  Kg6 {[%clk 0:00:40]} 44. Rae8 {[%clk 0:00:16]}  Ra4+ {[%clk 0:00:38]} 45. Ke3 {[%clk 0:00:16]}  Kf7 {[%clk 0:00:37]} 46. Ra8 {[%clk 0:00:16]}  Nf6 {[%clk 0:00:37]} 47. Rhf8+ {[%clk 0:00:16]}  Ke6 {[%clk 0:00:37]} 48. a7 {[%clk 0:00:17]}  Nfd5+ {[%clk 0:00:37]} 49. Kd3 {[%clk 0:00:16]}  Nc7 {[%clk 0:00:37]} 50. Rab8 {[%clk 0:00:15]}  Ra3+ {[%clk 0:00:37]} 51. Kc2 {[%clk 0:00:15]}  Rxa7 {[%clk 0:00:38]} 52. Rb6+ {[%clk 0:00:15]}  Ke5 {[%clk 0:00:36]} 53. Kd3 {[%clk 0:00:15]}  Ncd5 {[%clk 0:00:36]} 54. Rb5 {[%clk 0:00:15]}  Ke6 {[%clk 0:00:36]} 55. Re8 {[%clk 0:00:15]}  Ra3+ {[%clk 0:00:36]} 56. Ke2 {[%clk 0:00:15]}  Kf7 {[%clk 0:00:35]} 57. Rc8 {[%clk 0:00:14]}  Nf4+ {[%clk 0:00:34]} 58. Kf2 {[%clk 0:00:14]}  Ne6 {[%clk 0:00:35]} 59. Rcb8 {[%clk 0:00:15]}  Ra2+ {[%clk 0:00:35]} 60. Kg3 {[%clk 0:00:15]}  Ra7 {[%clk 0:00:35]} 61. R8b6 {[%clk 0:00:15]}  Ng6 {[%clk 0:00:34]} 62. Rf5+ {[%clk 0:00:15]}  Ke7 {[%clk 0:00:35]} 63. Rb8 {[%clk 0:00:14]}  Ngf8 {[%clk 0:00:34]} 64. Re5 {[%clk 0:00:15]}  Rd7 {[%clk 0:00:34]} 65. Re4 {[%clk 0:00:15]}  Kf7 {[%clk 0:00:34]} 66. Rb6 {[%clk 0:00:16]}  Re7 {[%clk 0:00:34]} 67. Rc6 {[%clk 0:00:16]}  Nd7 {[%clk 0:00:34]} 68. Ra6 {[%clk 0:00:15]}  Nf6 {[%clk 0:00:34]} 69. Re3 {[%clk 0:00:15]}  g6 {[%clk 0:00:33]} 70. Rb6 {[%clk 0:00:15]}  g5 {[%clk 0:00:32]} 71. Ra6 {[%clk 0:00:15]}  Nh5+ {[%clk 0:00:31]} 72. Kg4 {[%clk 0:00:15]}  Nf6+ {[%clk 0:00:32]} 73. Kg3 {[%clk 0:00:15]}  Ne8 {[%clk 0:00:30]} 74. h4 {[%clk 0:00:15]}  N8g7 {[%clk 0:00:30]} 75. hxg5 {[%clk 0:00:16]}  Nf5+ {[%clk 0:00:30]} 76. Kf2 {[%clk 0:00:15]}  Nxe3 {[%clk 0:00:31]} 77. Kxe3 {[%clk 0:00:16]}  hxg5 {[%clk 0:00:31]} 78. Kf2 {[%clk 0:00:16]}  Kf6 {[%clk 0:00:32]} 79. Kg3 {[%clk 0:00:17]}  Rd7 {[%clk 0:00:32]} 80. Kg4 {[%clk 0:00:17]}  Rd4+ {[%clk 0:00:32]} 81. Kg3 {[%clk 0:00:18]}  Rd5 {[%clk 0:00:32]} 82. Kg4 {[%clk 0:00:18]}  Rb5 {[%clk 0:00:32]} 83. Kg3 {[%clk 0:00:16]}  Kf5 {[%clk 0:00:32]} 84. Ra4 {[%clk 0:00:15]}  Rd5 {[%clk 0:00:30]} 85. Ra6 {[%clk 0:00:15]}  Nf4 {[%clk 0:00:30]} 86. Ra8 {[%clk 0:00:15]}  Rd2 {[%clk 0:00:30]} 87. Rf8+ {[%clk 0:00:15]}  Kg6 {[%clk 0:00:31]} 88. Rg8+ {[%clk 0:00:13]}  Kf6 {[%clk 0:00:31]} 89. Rf8+ {[%clk 0:00:14]}  Kg7 {[%clk 0:00:31]} 0-1


[Site "https://www.chess.com"]

[Event "Titled Tuesday Blitz November 22 Early 2022"]
[White "Tang, Andrew"]
[Black "Garcia Ramos, Daniel"]
[WhiteFideId "2059630"]
[BlackFideId "32010311"]
[WhiteElo "2581"]
[BlackElo "2357"]
[Result "1-0"]
[Round "02"]
[TimeControl "180+1"]
[Date "2022.11.22"]
[WhiteClock "0:00:01"]
[BlackClock "0:00:01"]

1. d4 {[%clk 0:02:57]}  d5 {[%clk 0:02:59]} 2. Bf4 {[%clk 0:02:56]}  e6 {[%clk 0:02:57]} 3. e3 {[%clk 0:02:57]}  Nf6 {[%clk 0:02:56]} 4. Nf3 {[%clk 0:02:56]}  Bd6 {[%clk 0:02:57]} 5. Nbd2 {[%clk 0:02:55]}  O-O {[%clk 0:02:55]} 6. Bd3 {[%clk 0:02:55]}  c5 {[%clk 0:02:56]} 7. c3 {[%clk 0:02:55]}  b6 {[%clk 0:02:49]} 8. Ne5 {[%clk 0:02:50]}  Bb7 {[%clk 0:02:47]} 9. Qf3 {[%clk 0:02:50]}  Qc7 {[%clk 0:02:36]} 10. Qh3 {[%clk 0:02:49]}  Nbd7 {[%clk 0:02:22]} 11. Ndf3 {[%clk 0:01:07]}  h6 {[%clk 0:00:54]} 12. g4 {[%clk 0:00:36]}  Ne4 {[%clk 0:00:45]} 13. g5 {[%clk 0:00:27]}  hxg5 {[%clk 0:00:08]} 14. Bxe4 {[%clk 0:00:18]}  dxe4 {[%clk 0:00:05]} 15. Nxg5 {[%clk 0:00:18]}  Nf6 {[%clk 0:00:05]} 16. Ng4 {[%clk 0:00:19]}  Rfd8 {[%clk 0:00:02]} 17. Rg1 {[%clk 0:00:03]}  Bxf4 {[%clk 0:00:01]} 18. Nxf6+ {[%clk 0:00:03]}  Kf8 {[%clk 0:00:02]} 19. Nxe6+ {[%clk 0:00:01]}  fxe6 {[%clk 0:00:02]} 20. Qh8+ {[%clk 0:00:02]}  Kf7 {[%clk 0:00:01]} 21. Qxg7# {[%clk 0:00:01]} 1-0


[Site "https://www.chess.com"]